[Event "Titled Tuesday Blitz March 01 Early 2022"]
[White "De Souza, Cristiano Gomes"]
[Black "De Silva, L M S T"]
[WhiteFideId "2151758"]
[BlackFideId "9953698"]
[WhiteElo "2068"]
[BlackElo "1631"]
[Result "0-1"]
[Round "06"]
[TimeControl "180+1"]
[Date "2022.03.01"]
[WhiteClock "0:01:19"]
[BlackClock "0:01:15"]

1. d4 {[%clk 0:03:00]}  Nf6 {[%clk 0:03:00]} 2. c4 {[%clk 0:03:01]}  e6 {[%clk 0:03:00]} 3. Nf3 {[%clk 0:03:01]}  b6 {[%clk 0:03:00]} 4. g3 {[%clk 0:03:01]}  Bb7 {[%clk 0:03:01]} 5. Bg2 {[%clk 0:03:01]}  g6 {[%clk 0:03:02]} 6. O-O {[%clk 0:03:00]}  Bg7 {[%clk 0:03:02]} 7. Nc3 {[%clk 0:03:01]}  Ne4 {[%clk 0:03:03]} 8. Qc2 {[%clk 0:03:00]}  Nxc3 {[%clk 0:03:03]} 9. Qxc3 {[%clk 0:03:00]}  O-O {[%clk 0:03:02]} 10. b3 {[%clk 0:03:00]}  d6 {[%clk 0:03:02]} 11. Bb2 {[%clk 0:03:00]}  Nd7 {[%clk 0:03:02]} 12. Rfd1 {[%clk 0:03:00]}  f5 {[%clk 0:03:03]} 13. Rac1 {[%clk 0:02:59]}  Qe7 {[%clk 0:03:03]} 14. Ne1 {[%clk 0:02:59]}  Bxg2 {[%clk 0:03:02]} 15. Nxg2 {[%clk 0:02:58]}  Nf6 {[%clk 0:03:03]} 16. f3 {[%clk 0:02:58]}  Rad8 {[%clk 0:03:02]} 17. Nf4 {[%clk 0:02:57]}  g5 {[%clk 0:03:02]} 18. Nd3 {[%clk 0:02:56]}  h6 {[%clk 0:02:59]} 19. Qe1 {[%clk 0:02:54]}  Nd7 {[%clk 0:02:50]} 20. Nb4 {[%clk 0:02:52]}  Nb8 {[%clk 0:02:49]} 21. Qd2 {[%clk 0:02:49]}  a5 {[%clk 0:02:48]} 22. Nd3 {[%clk 0:02:49]}  e5 {[%clk 0:02:48]} 23. dxe5 {[%clk 0:02:48]}  dxe5 {[%clk 0:02:48]} 24. Qc2 {[%clk 0:02:47]}  Nc6 {[%clk 0:02:47]} 25. a3 {[%clk 0:02:41]}  e4 {[%clk 0:02:39]} 26. Ne1 {[%clk 0:02:39]}  Bd4+ {[%clk 0:02:22]} 27. Kg2 {[%clk 0:02:36]}  Qe5 {[%clk 0:02:20]} 28. Bxd4 {[%clk 0:02:17]}  Nxd4 {[%clk 0:02:19]} 29. Qa2 {[%clk 0:02:16]}  c5 {[%clk 0:02:14]} 30. Rd2 {[%clk 0:02:08]}  e3 {[%clk 0:01:49]} 31. Rd3 {[%clk 0:02:06]}  g4 {[%clk 0:01:45]} 32. Rcd1 {[%clk 0:02:04]}  Rde8 {[%clk 0:01:40]} 33. Qa1 {[%clk 0:02:00]}  Nxe2 {[%clk 0:01:35]} 34. Qxe5 {[%clk 0:01:59]}  Rxe5 {[%clk 0:01:36]} 35. Rd8 {[%clk 0:01:53]}  Nd4 {[%clk 0:01:33]} 36. Rxf8+ {[%clk 0:01:51]}  Kxf8 {[%clk 0:01:34]} 37. Nd3 {[%clk 0:01:48]}  e2 {[%clk 0:01:31]} 38. Re1 {[%clk 0:01:47]}  Re3 {[%clk 0:01:31]} 39. Nc1 {[%clk 0:01:42]}  Rxf3 {[%clk 0:01:14]} 40. Nxe2 {[%clk 0:01:37]}  Re3 {[%clk 0:01:14]} 41. Kf2 {[%clk 0:01:36]}  Rxe2+ {[%clk 0:01:14]} 42. Rxe2 {[%clk 0:01:36]}  Nxe2 {[%clk 0:01:15]} 43. Kxe2 {[%clk 0:01:36]}  Ke7 {[%clk 0:01:16]} 44. Ke3 {[%clk 0:01:36]}  Ke6 {[%clk 0:01:16]} 45. Kf4 {[%clk 0:01:35]}  Kf6 {[%clk 0:01:16]} 46. Ke3 {[%clk 0:01:25]}  Ke5 {[%clk 0:01:16]} 47. a4 {[%clk 0:01:22]}  h5 {[%clk 0:01:13]} 48. Kd3 {[%clk 0:01:19]}  f4 {[%clk 0:01:13]} 49. gxf4+ {[%clk 0:01:19]}  Kxf4 {[%clk 0:01:14]} 50. Ke2 {[%clk 0:01:19]}  h4 {[%clk 0:01:14]} 51. Kf2 {[%clk 0:01:20]}  Ke4 {[%clk 0:01:14]} 52. Ke2 {[%clk 0:01:20]}  Kd4 {[%clk 0:01:14]} 53. Kd2 {[%clk 0:01:18]}  g3 {[%clk 0:01:14]} 54. hxg3 {[%clk 0:01:18]}  h3 {[%clk 0:01:15]} 55. Ke2 {[%clk 0:01:19]}  h2 {[%clk 0:01:15]} 0-1


[Site "https://www.chess.com"]

[Event "Titled Tuesday Blitz March 01 Early 2022"]
[White "Deac, Bogdan-Daniel"]
[Black "Obolenskikh, Dmitry"]
[WhiteFideId "1226380"]
[BlackFideId "4156013"]
[WhiteElo "2646"]
[BlackElo "2512"]
[Result "1/2-1/2"]
[Round "06"]
[TimeControl "180+1"]
[Date "2022.03.01"]
[WhiteClock "0:00:04"]
[BlackClock "0:00:22"]

1. e4 {[%clk 0:03:00]}  e5 {[%clk 0:02:59]} 2. Nf3 {[%clk 0:03:01]}  Nc6 {[%clk 0:02:58]} 3. d4 {[%clk 0:03:01]}  exd4 {[%clk 0:02:58]} 4. Nxd4 {[%clk 0:03:02]}  Bc5 {[%clk 0:02:57]} 5. Nb3 {[%clk 0:03:02]}  Bb6 {[%clk 0:02:51]} 6. Nc3 {[%clk 0:03:00]}  Nf6 {[%clk 0:02:48]} 7. Qe2 {[%clk 0:03:00]}  O-O {[%clk 0:02:43]} 8. Bg5 {[%clk 0:02:59]}  h6 {[%clk 0:02:11]} 9. Bh4 {[%clk 0:02:58]}  a5 {[%clk 0:02:12]} 10. a4 {[%clk 0:02:52]}  Nd4 {[%clk 0:02:12]} 11. Qd3 {[%clk 0:02:49]}  Nxb3 {[%clk 0:02:12]} 12. cxb3 {[%clk 0:02:50]}  Re8 {[%clk 0:02:11]} 13. O-O-O {[%clk 0:02:49]}  c6 {[%clk 0:02:08]} 14. Qc2 {[%clk 0:02:36]}  g5 {[%clk 0:01:53]} 15. Bg3 {[%clk 0:02:35]}  d5 {[%clk 0:01:53]} 16. exd5 {[%clk 0:02:09]}  Nxd5 {[%clk 0:01:52]} 17. h4 {[%clk 0:02:08]}  g4 {[%clk 0:01:34]} 18. Nxd5 {[%clk 0:01:51]}  cxd5 {[%clk 0:01:29]} 19. Bb5 {[%clk 0:01:52]}  Re6 {[%clk 0:01:06]} 20. Kb1 {[%clk 0:01:20]}  d4 {[%clk 0:01:02]} 21. Ka2 {[%clk 0:01:06]}  Bd7 {[%clk 0:00:57]} 22. Bc4 {[%clk 0:01:06]}  Rc6 {[%clk 0:00:57]} 23. Be5 {[%clk 0:00:48]}  Be6 {[%clk 0:00:47]} 24. Qe4 {[%clk 0:00:47]}  Bxc4 {[%clk 0:00:39]} 25. bxc4 {[%clk 0:00:44]}  Qd7 {[%clk 0:00:39]} 26. Qd3 {[%clk 0:00:11]}  Re8 {[%clk 0:00:36]} 27. Bf4 {[%clk 0:00:11]}  Rf6 {[%clk 0:00:34]} 28. g3 {[%clk 0:00:09]}  Qxa4+ {[%clk 0:00:34]} 29. Kb1 {[%clk 0:00:09]}  Qd7 {[%clk 0:00:34]} 30. Rhe1 {[%clk 0:00:09]}  Rxe1 {[%clk 0:00:32]} 31. Rxe1 {[%clk 0:00:10]}  h5 {[%clk 0:00:32]} 32. Rd1 {[%clk 0:00:06]}  Qf5 {[%clk 0:00:22]} 33. Qxf5 {[%clk 0:00:04]}  Rxf5 {[%clk 0:00:23]} 34. Kc2 {[%clk 0:00:05]}  Kg7 {[%clk 0:00:22]} 35. Kd3 {[%clk 0:00:05]}  Kg6 {[%clk 0:00:22]} 36. Re1 {[%clk 0:00:05]}  Bc5 {[%clk 0:00:21]} 37. Re8 {[%clk 0:00:04]}  b6 {[%clk 0:00:21]} 38. Rg8+ {[%clk 0:00:02]}  Kh7 {[%clk 0:00:22]} 39. Rd8 {[%clk 0:00:02]}  Kg7 {[%clk 0:00:22]} 40. Re8 {[%clk 0:00:03]}  Kh7 {[%clk 0:00:21]} 41. Ke4 {[%clk 0:00:03]}  Rf6 {[%clk 0:00:21]} 42. Kd3 {[%clk 0:00:03]}  Re6 {[%clk 0:00:20]} 43. Rxe6 {[%clk 0:00:03]}  fxe6 {[%clk 0:00:20]} 44. Be5 {[%clk 0:00:04]}  Kg6 {[%clk 0:00:20]} 45. Bxd4 {[%clk 0:00:04]}  Kf5 {[%clk 0:00:20]} 46. Bxc5 {[%clk 0:00:03]}  bxc5 {[%clk 0:00:21]} 47. b3 {[%clk 0:00:03]}  e5 {[%clk 0:00:21]} 48. Ke3 {[%clk 0:00:04]}  e4 {[%clk 0:00:19]} 49. Kd2 {[%clk 0:00:04]}  Ke5 {[%clk 0:00:19]} 50. Ke3 {[%clk 0:00:04]}  Kf5 {[%clk 0:00:20]} 51. Ke2 {[%clk 0:00:05]}  Kf6 {[%clk 0:00:20]} 52. Kd2 {[%clk 0:00:04]}  Ke6 {[%clk 0:00:21]} 53. Ke2 {[%clk 0:00:03]}  Kf5 {[%clk 0:00:21]} 54. Kd2 {[%clk 0:00:03]}  Ke5 {[%clk 0:00:22]} 55. Ke3 {[%clk 0:00:04]}  Kf5 {[%clk 0:00:22]} 1/2-1/2


[Site "https://www.chess.com"]

[Event "Titled Tuesday Blitz March 01 Early 2022"]
[White "Dias, Joao Batista"]
[Black "Viskelis, Darius"]
[WhiteFideId "2108240"]
[BlackFideId "12800830"]
[WhiteElo "1898"]
[BlackElo "1999"]
[Result "1/2-1/2"]
[Round "06"]
[TimeControl "180+1"]
[Date "2022.03.01"]
[WhiteClock "0:01:03"]
[BlackClock "0:01:19"]

1. e4 {[%clk 0:03:00]}  Nc6 {[%clk 0:02:58]} 2. d4 {[%clk 0:02:59]}  d5 {[%clk 0:02:56]} 3. Nc3 {[%clk 0:02:59]}  dxe4 {[%clk 0:02:52]} 4. d5 {[%clk 0:02:59]}  Nb4 {[%clk 0:02:48]} 5. a3 {[%clk 0:02:57]}  Na6 {[%clk 0:02:45]} 6. Bxa6 {[%clk 0:02:56]}  bxa6 {[%clk 0:02:45]} 7. Nxe4 {[%clk 0:02:56]}  Nf6 {[%clk 0:02:44]} 8. Nxf6+ {[%clk 0:02:56]}  exf6 {[%clk 0:02:44]} 9. Ne2 {[%clk 0:02:54]}  Bd6 {[%clk 0:02:44]} 10. O-O {[%clk 0:02:54]}  O-O {[%clk 0:02:44]} 11. Bf4 {[%clk 0:02:52]}  Re8 {[%clk 0:02:43]} 12. Bxd6 {[%clk 0:02:52]}  Qxd6 {[%clk 0:02:44]} 13. c4 {[%clk 0:02:51]}  Bg4 {[%clk 0:02:41]} 14. f3 {[%clk 0:02:48]}  Bf5 {[%clk 0:02:41]} 15. Kh1 {[%clk 0:02:35]}  Qc5 {[%clk 0:02:38]} 16. Qd4 {[%clk 0:02:25]}  Qb6 {[%clk 0:02:21]} 17. Qd2 {[%clk 0:02:15]}  a5 {[%clk 0:02:15]} 18. Ng3 {[%clk 0:02:09]}  Bg6 {[%clk 0:02:13]} 19. Rae1 {[%clk 0:02:08]}  a4 {[%clk 0:02:10]} 20. Rxe8+ {[%clk 0:01:50]}  Rxe8 {[%clk 0:02:11]} 21. Re1 {[%clk 0:01:50]}  Rxe1+ {[%clk 0:02:09]} 22. Qxe1 {[%clk 0:01:50]}  h5 {[%clk 0:02:09]} 23. Qe2 {[%clk 0:01:46]}  Qd4 {[%clk 0:02:05]} 24. h3 {[%clk 0:01:42]}  Bd3 {[%clk 0:02:02]} 25. Qe8+ {[%clk 0:01:33]}  Kh7 {[%clk 0:02:01]} 26. Qxf7 {[%clk 0:01:31]}  Bg6 {[%clk 0:01:56]} 27. Qxc7 {[%clk 0:01:26]}  Qxb2 {[%clk 0:01:51]} 28. Ne4 {[%clk 0:01:19]}  Bxe4 {[%clk 0:01:47]} 29. fxe4 {[%clk 0:01:18]}  Qb1+ {[%clk 0:01:47]} 30. Kh2 {[%clk 0:01:17]}  Qxe4 {[%clk 0:01:47]} 31. d6 {[%clk 0:01:04]}  Qe5+ {[%clk 0:01:43]} 32. Kg1 {[%clk 0:01:03]}  Qe1+ {[%clk 0:01:43]} 33. Kh2 {[%clk 0:01:03]}  Qe5+ {[%clk 0:01:37]} 34. Kg1 {[%clk 0:01:03]}  Qe1+ {[%clk 0:01:25]} 35. Kh2 {[%clk 0:01:03]}  Qe5+ {[%clk 0:01:19]} 1/2-1/2


[Site "https://www.chess.com"]

[Event "Titled Tuesday Blitz March 01 Early 2022"]
[White "Domingo Nunez, Alejandro"]
[Black "Osmonbekov, Talaibek"]
[WhiteFideId "22245561"]
[BlackFideId "2017253"]
[WhiteElo "2215"]
[BlackElo "2135"]
[Result "1-0"]
[Round "06"]
[TimeControl "180+1"]
[Date "2022.03.01"]
[WhiteClock "0:00:10"]
[BlackClock "0:00:01"]

1. Nf3 {[%clk 0:03:00]}  d6 {[%clk 0:02:53]} 2. d4 {[%clk 0:02:58]}  f5 {[%clk 0:02:52]} 3. g3 {[%clk 0:02:57]}  Nf6 {[%clk 0:02:53]} 4. Bg2 {[%clk 0:02:57]}  e6 {[%clk 0:02:53]} 5. O-O {[%clk 0:02:58]}  Be7 {[%clk 0:02:54]} 6. c4 {[%clk 0:02:58]}  O-O {[%clk 0:02:55]} 7. b3 {[%clk 0:02:58]}  a5 {[%clk 0:02:54]} 8. Nc3 {[%clk 0:02:57]}  Ne4 {[%clk 0:02:52]} 9. Bb2 {[%clk 0:02:54]}  Bf6 {[%clk 0:02:46]} 10. Qc2 {[%clk 0:02:50]}  Nxc3 {[%clk 0:02:45]} 11. Bxc3 {[%clk 0:02:50]}  Nc6 {[%clk 0:02:45]} 12. d5 {[%clk 0:02:44]}  Nb4 {[%clk 0:02:44]} 13. Qd2 {[%clk 0:02:26]}  Bxc3 {[%clk 0:02:33]} 14. Qxc3 {[%clk 0:02:25]}  exd5 {[%clk 0:02:33]} 15. a3 {[%clk 0:02:25]}  Na6 {[%clk 0:02:29]} 16. cxd5 {[%clk 0:02:24]}  Nc5 {[%clk 0:02:26]} 17. Nd4 {[%clk 0:02:21]}  Qf6 {[%clk 0:02:03]} 18. b4 {[%clk 0:02:17]}  Na4 {[%clk 0:01:54]} 19. Qd2 {[%clk 0:02:00]}  f4 {[%clk 0:01:47]} 20. Rac1 {[%clk 0:01:55]}  Rf7 {[%clk 0:01:35]} 21. Nb5 {[%clk 0:01:35]}  Bd7 {[%clk 0:01:12]} 22. Nxc7 {[%clk 0:01:32]}  Rc8 {[%clk 0:00:48]} 23. Ne6 {[%clk 0:01:27]}  Re8 {[%clk 0:00:43]} 24. Nxf4 {[%clk 0:01:19]}  axb4 {[%clk 0:00:29]} 25. axb4 {[%clk 0:01:18]}  b5 {[%clk 0:00:29]} 26. e3 {[%clk 0:00:43]}  Nb6 {[%clk 0:00:28]} 27. Qc3 {[%clk 0:00:42]}  Nc4 {[%clk 0:00:27]} 28. Qxf6 {[%clk 0:00:40]}  Rxf6 {[%clk 0:00:28]} 29. h4 {[%clk 0:00:39]}  g6 {[%clk 0:00:26]} 30. Rfd1 {[%clk 0:00:38]}  h6 {[%clk 0:00:25]} 31. Bf1 {[%clk 0:00:38]}  Ne5 {[%clk 0:00:24]} 32. Bg2 {[%clk 0:00:28]}  Ref8 {[%clk 0:00:22]} 33. Rd2 {[%clk 0:00:19]}  Nc4 {[%clk 0:00:21]} 34. Ra2 {[%clk 0:00:18]}  Bg4 {[%clk 0:00:17]} 35. Rca1 {[%clk 0:00:16]}  g5 {[%clk 0:00:17]} 36. hxg5 {[%clk 0:00:17]}  hxg5 {[%clk 0:00:17]} 37. Ne6 {[%clk 0:00:18]}  Bxe6 {[%clk 0:00:16]} 38. dxe6 {[%clk 0:00:19]}  Ne5 {[%clk 0:00:14]} 39. Bd5 {[%clk 0:00:18]}  Kg7 {[%clk 0:00:13]} 40. Kg2 {[%clk 0:00:17]}  Kg6 {[%clk 0:00:12]} 41. f4 {[%clk 0:00:15]}  Ng4 {[%clk 0:00:11]} 42. Kf3 {[%clk 0:00:16]}  Ne5+ {[%clk 0:00:11]} 43. Ke4 {[%clk 0:00:15]}  Ng4 {[%clk 0:00:10]} 44. Rh1 {[%clk 0:00:15]}  gxf4 {[%clk 0:00:08]} 45. gxf4 {[%clk 0:00:15]}  Rf5 {[%clk 0:00:08]} 46. Rg2 {[%clk 0:00:14]}  Rg5 {[%clk 0:00:06]} 47. fxg5 {[%clk 0:00:14]}  Nf2+ {[%clk 0:00:07]} 48. Rxf2 {[%clk 0:00:14]}  Rxf2 {[%clk 0:00:07]} 49. e7 {[%clk 0:00:14]}  Kg7 {[%clk 0:00:04]} 50. Rh7+ {[%clk 0:00:10]}  Kxh7 {[%clk 0:00:01]} 51. e8=Q {[%clk 0:00:10]} 1-0


[Site "https://www.chess.com"]

[Event "Titled Tuesday Blitz March 01 Early 2022"]
[White "Dubov, Daniil"]
[Black "Bilych, Olexiy"]
[WhiteFideId "24126055"]
[BlackFideId "14156504"]
[WhiteElo "2791"]
[BlackElo "2195"]
[Result "1-0"]
[Round "06"]
[TimeControl "180+1"]
[Date "2022.03.01"]
[WhiteClock "0:01:36"]
[BlackClock "0:00:23"]

1. e4 {[%clk 0:03:00]}  e5 {[%clk 0:02:56]} 2. Nf3 {[%clk 0:02:59]}  Nc6 {[%clk 0:02:56]} 3. Nc3 {[%clk 0:02:59]}  Nf6 {[%clk 0:02:56]} 4. Nxe5 {[%clk 0:03:00]}  Nxe5 {[%clk 0:02:54]} 5. d4 {[%clk 0:03:01]}  Nc6 {[%clk 0:02:47]} 6. d5 {[%clk 0:03:01]}  Bb4 {[%clk 0:02:46]} 7. dxc6 {[%clk 0:03:00]}  bxc6 {[%clk 0:02:46]} 8. Bd3 {[%clk 0:03:00]}  d5 {[%clk 0:02:46]} 9. exd5 {[%clk 0:02:58]}  O-O {[%clk 0:02:47]} 10. O-O {[%clk 0:02:59]}  cxd5 {[%clk 0:02:46]} 11. h3 {[%clk 0:02:56]}  Rb8 {[%clk 0:02:41]} 12. Qf3 {[%clk 0:02:55]}  c6 {[%clk 0:02:40]} 13. Bf4 {[%clk 0:02:49]}  Bd6 {[%clk 0:02:40]} 14. b3 {[%clk 0:02:50]}  Rb4 {[%clk 0:02:37]} 15. Bxd6 {[%clk 0:02:49]}  Qxd6 {[%clk 0:02:38]} 16. Rad1 {[%clk 0:02:46]}  Re8 {[%clk 0:02:03]} 17. Ne2 {[%clk 0:02:43]}  c5 {[%clk 0:01:48]} 18. Rfe1 {[%clk 0:02:33]}  Bb7 {[%clk 0:01:44]} 19. Ng3 {[%clk 0:02:29]}  Rxe1+ {[%clk 0:01:30]} 20. Rxe1 {[%clk 0:02:28]}  g6 {[%clk 0:01:30]} 21. Qe3 {[%clk 0:02:13]}  Bc6 {[%clk 0:01:18]} 22. Nf5 {[%clk 0:01:50]}  gxf5 {[%clk 0:01:10]} 23. Qg5+ {[%clk 0:01:49]}  Kh8 {[%clk 0:01:01]} 24. Bxf5 {[%clk 0:01:48]}  Rb8 {[%clk 0:00:57]} 25. Re6 {[%clk 0:01:47]}  Qd8 {[%clk 0:00:32]} 26. Rxf6 {[%clk 0:01:45]}  Bd7 {[%clk 0:00:25]} 27. Qh6 {[%clk 0:01:36]}  Bxf5 {[%clk 0:00:25]} 28. Rxf7 {[%clk 0:01:36]}  Bg6 {[%clk 0:00:23]} 1-0


[Site "https://www.chess.com"]

[Event "Titled Tuesday Blitz March 01 Early 2022"]
[White "Gabdrakhmanov, Azat"]
[Black "Svane, Frederik"]
[WhiteFideId "34189197"]
[BlackFideId "12923044"]
[WhiteElo "2279"]
[BlackElo "2459"]
[Result "1-0"]
[Round "06"]
[TimeControl "180+1"]
[Date "2022.03.01"]
[WhiteClock "0:00:18"]
[BlackClock "0:00:02"]

1. e4 {[%clk 0:03:00]}  e5 {[%clk 0:03:00]} 2. Nf3 {[%clk 0:03:00]}  Nc6 {[%clk 0:03:01]} 3. Bb5 {[%clk 0:03:00]}  Nf6 {[%clk 0:03:01]} 4. d3 {[%clk 0:02:59]}  d6 {[%clk 0:03:00]} 5. O-O {[%clk 0:02:59]}  Bd7 {[%clk 0:02:58]} 6. c3 {[%clk 0:02:59]}  g6 {[%clk 0:02:53]} 7. Nbd2 {[%clk 0:02:58]}  Bg7 {[%clk 0:02:53]} 8. Re1 {[%clk 0:02:59]}  O-O {[%clk 0:02:54]} 9. Nf1 {[%clk 0:02:59]}  a6 {[%clk 0:02:50]} 10. Ba4 {[%clk 0:02:59]}  b5 {[%clk 0:02:51]} 11. Bb3 {[%clk 0:02:59]}  a5 {[%clk 0:02:51]} 12. a4 {[%clk 0:02:55]}  b4 {[%clk 0:02:51]} 13. Bg5 {[%clk 0:02:53]}  h6 {[%clk 0:02:49]} 14. Bd2 {[%clk 0:02:53]}  Rb8 {[%clk 0:02:48]} 15. Bc4 {[%clk 0:02:52]}  bxc3 {[%clk 0:02:36]} 16. Bxc3 {[%clk 0:02:52]}  Re8 {[%clk 0:02:28]} 17. Ng3 {[%clk 0:02:44]}  Be6 {[%clk 0:02:19]} 18. Bb5 {[%clk 0:02:42]}  Bd7 {[%clk 0:02:17]} 19. Bc4 {[%clk 0:02:07]}  Nb4 {[%clk 0:02:15]} 20. d4 {[%clk 0:02:03]}  exd4 {[%clk 0:02:15]} 21. Nxd4 {[%clk 0:02:02]}  c6 {[%clk 0:02:06]} 22. Nb3 {[%clk 0:01:54]}  d5 {[%clk 0:01:14]} 23. exd5 {[%clk 0:01:40]}  Rxe1+ {[%clk 0:01:15]} 24. Bxe1 {[%clk 0:01:36]}  Nfxd5 {[%clk 0:01:03]} 25. Bxd5 {[%clk 0:01:20]}  cxd5 {[%clk 0:00:28]} 26. Bc3 {[%clk 0:01:16]}  Bxc3 {[%clk 0:00:12]} 27. bxc3 {[%clk 0:01:17]}  Nc6 {[%clk 0:00:13]} 28. Nc5 {[%clk 0:01:16]}  Be8 {[%clk 0:00:08]} 29. h4 {[%clk 0:01:07]}  Qd6 {[%clk 0:00:08]} 30. Nd3 {[%clk 0:00:55]}  h5 {[%clk 0:00:09]} 31. Qf3 {[%clk 0:00:50]}  Bd7 {[%clk 0:00:05]} 32. Re1 {[%clk 0:00:44]}  Bg4 {[%clk 0:00:05]} 33. Qe3 {[%clk 0:00:44]}  Qf6 {[%clk 0:00:06]} 34. Nc5 {[%clk 0:00:41]}  Qxh4 {[%clk 0:00:02]} 35. Qf4 {[%clk 0:00:37]}  Rf8 {[%clk 0:00:01]} 36. Nd7 {[%clk 0:00:32]}  Rd8 {[%clk 0:00:02]} 37. Nf6+ {[%clk 0:00:26]}  Kg7 {[%clk 0:00:02]} 38. Ne8+ {[%clk 0:00:23]}  Kg8 {[%clk 0:00:03]} 39. Nd6 {[%clk 0:00:20]}  Ne7 {[%clk 0:00:01]} 40. Qxf7+ {[%clk 0:00:20]}  Kh8 {[%clk 0:00:02]} 41. Rxe7 {[%clk 0:00:18]} 1-0


[Site "https://www.chess.com"]

[Event "Titled Tuesday Blitz March 01 Early 2022"]
[White "Garagulya, Konstantin"]
[Black "Zia, Tahsin Tajwar"]
[WhiteFideId "4128931"]
[BlackFideId "10211888"]
[WhiteElo "2329"]
[BlackElo "1800"]
[Result "1/2-1/2"]
[Round "06"]
[TimeControl "180+1"]
[Date "2022.03.01"]
[WhiteClock "0:00:11"]
[BlackClock "0:00:06"]

1. Nf3 {[%clk 0:02:55]}  d5 {[%clk 0:02:59]} 2. d4 {[%clk 0:02:54]}  Nf6 {[%clk 0:02:53]} 3. c4 {[%clk 0:02:54]}  e6 {[%clk 0:02:54]} 4. Bg5 {[%clk 0:02:43]}  dxc4 {[%clk 0:02:49]} 5. Qa4+ {[%clk 0:02:42]}  Bd7 {[%clk 0:02:32]} 6. Qxc4 {[%clk 0:02:41]}  b5 {[%clk 0:02:32]} 7. Qc2 {[%clk 0:02:40]}  c5 {[%clk 0:02:21]} 8. dxc5 {[%clk 0:02:40]}  Qc7 {[%clk 0:02:15]} 9. Nbd2 {[%clk 0:01:46]}  Bxc5 {[%clk 0:01:50]} 10. Rc1 {[%clk 0:01:45]}  Na6 {[%clk 0:01:48]} 11. b4 {[%clk 0:01:03]}  Bd6 {[%clk 0:01:17]} 12. Qb2 {[%clk 0:01:03]}  Qd8 {[%clk 0:01:07]} 13. a3 {[%clk 0:01:00]}  h6 {[%clk 0:01:03]} 14. Bh4 {[%clk 0:00:57]}  O-O {[%clk 0:01:00]} 15. e3 {[%clk 0:00:55]}  Nc7 {[%clk 0:00:50]} 16. Ne4 {[%clk 0:00:46]}  Be7 {[%clk 0:00:45]} 17. Nxf6+ {[%clk 0:00:47]}  Bxf6 {[%clk 0:00:41]} 18. Bxf6 {[%clk 0:00:46]}  gxf6 {[%clk 0:00:42]} 19. Be2 {[%clk 0:00:44]}  Nd5 {[%clk 0:00:34]} 20. O-O {[%clk 0:00:44]}  a5 {[%clk 0:00:26]} 21. Rc5 {[%clk 0:00:17]}  axb4 {[%clk 0:00:24]} 22. axb4 {[%clk 0:00:18]}  Ra4 {[%clk 0:00:23]} 23. Qd2 {[%clk 0:00:17]}  Qb8 {[%clk 0:00:15]} 24. Rb1 {[%clk 0:00:15]}  Rc8 {[%clk 0:00:13]} 25. Nd4 {[%clk 0:00:15]}  Rxc5 {[%clk 0:00:07]} 26. bxc5 {[%clk 0:00:16]}  b4 {[%clk 0:00:07]} 27. c6 {[%clk 0:00:14]}  Be8 {[%clk 0:00:06]} 28. Qc2 {[%clk 0:00:15]}  Ra7 {[%clk 0:00:04]} 29. Bf3 {[%clk 0:00:13]}  Qd8 {[%clk 0:00:03]} 30. Bxd5 {[%clk 0:00:12]}  Qxd5 {[%clk 0:00:04]} 31. Rxb4 {[%clk 0:00:12]}  Ra1+ {[%clk 0:00:03]} 32. Rb1 {[%clk 0:00:13]}  Rxb1+ {[%clk 0:00:03]} 33. Qxb1 {[%clk 0:00:13]}  Bxc6 {[%clk 0:00:03]} 34. Qb8+ {[%clk 0:00:13]}  Kg7 {[%clk 0:00:04]} 35. Qg3+ {[%clk 0:00:14]}  Kf8 {[%clk 0:00:04]} 36. h4 {[%clk 0:00:15]}  Bd7 {[%clk 0:00:03]} 37. Kh2 {[%clk 0:00:15]}  h5 {[%clk 0:00:03]} 38. Qf4 {[%clk 0:00:15]}  Ke7 {[%clk 0:00:03]} 39. Nf3 {[%clk 0:00:14]}  Bc6 {[%clk 0:00:04]} 40. Kg3 {[%clk 0:00:14]}  Qd6 {[%clk 0:00:03]} 41. Qxd6+ {[%clk 0:00:14]}  Kxd6 {[%clk 0:00:04]} 42. Nd2 {[%clk 0:00:14]}  Ke5 {[%clk 0:00:04]} 43. f3 {[%clk 0:00:14]}  Kf5 {[%clk 0:00:05]} 44. Nc4 {[%clk 0:00:14]}  Bd5 {[%clk 0:00:04]} 45. e4+ {[%clk 0:00:14]}  Bxe4 {[%clk 0:00:04]} 46. fxe4+ {[%clk 0:00:14]}  Kxe4 {[%clk 0:00:05]} 47. Nd6+ {[%clk 0:00:15]}  Ke3 {[%clk 0:00:05]} 48. Nxf7 {[%clk 0:00:16]}  f5 {[%clk 0:00:05]} 49. Nd6 {[%clk 0:00:13]}  f4+ {[%clk 0:00:05]} 50. Kh2 {[%clk 0:00:14]}  e5 {[%clk 0:00:06]} 51. Nf5+ {[%clk 0:00:14]}  Ke4 {[%clk 0:00:06]} 52. Ng7 {[%clk 0:00:15]}  f3 {[%clk 0:00:03]} 53. gxf3+ {[%clk 0:00:13]}  Kxf3 {[%clk 0:00:04]} 54. Nxh5 {[%clk 0:00:14]}  Kg4 {[%clk 0:00:03]} 55. Ng3 {[%clk 0:00:09]}  Kxh4 {[%clk 0:00:04]} 56. Ne4 {[%clk 0:00:10]}  Kg4 {[%clk 0:00:05]} 57. Kg2 {[%clk 0:00:10]}  Kf4 {[%clk 0:00:06]} 58. Nf2 {[%clk 0:00:10]}  Ke3 {[%clk 0:00:06]} 59. Ng4+ {[%clk 0:00:10]}  Kd4 {[%clk 0:00:06]} 60. Nxe5 {[%clk 0:00:11]} 1/2-1/2


[Site "https://www.chess.com"]

[Event "Titled Tuesday Blitz March 01 Early 2022"]
[White "Gelman, Alexander"]
[Black "Lazavik, Denis"]
[WhiteFideId "4118316"]
[BlackFideId "13515110"]
[WhiteElo "2375"]
[BlackElo "2436"]
[Result "0-1"]
[Round "06"]
[TimeControl "180+1"]
[Date "2022.03.01"]
[WhiteClock "0:00:04"]
[BlackClock "0:00:33"]

1. d4 {[%clk 0:02:56]}  Nf6 {[%clk 0:02:59]} 2. Nc3 {[%clk 0:02:56]}  d5 {[%clk 0:02:58]} 3. Bf4 {[%clk 0:02:55]}  a6 {[%clk 0:02:56]} 4. e3 {[%clk 0:02:55]}  e6 {[%clk 0:02:55]} 5. g4 {[%clk 0:02:55]}  Bb4 {[%clk 0:02:54]} 6. f3 {[%clk 0:02:42]}  c5 {[%clk 0:02:52]} 7. Ne2 {[%clk 0:02:40]}  Nc6 {[%clk 0:02:51]} 8. a3 {[%clk 0:02:37]}  Bxc3+ {[%clk 0:02:37]} 9. Nxc3 {[%clk 0:02:37]}  Qb6 {[%clk 0:02:36]} 10. Na4 {[%clk 0:02:28]}  Qa5+ {[%clk 0:02:35]} 11. c3 {[%clk 0:02:29]}  c4 {[%clk 0:02:21]} 12. b4 {[%clk 0:02:11]}  cxb3 {[%clk 0:02:20]} 13. Qxb3 {[%clk 0:02:11]}  Nd7 {[%clk 0:02:20]} 14. Bd6 {[%clk 0:02:05]}  b5 {[%clk 0:02:07]} 15. Nc5 {[%clk 0:02:01]}  Qb6 {[%clk 0:02:07]} 16. Nxd7 {[%clk 0:01:55]}  Bxd7 {[%clk 0:02:08]} 17. Bc5 {[%clk 0:01:53]}  Qc7 {[%clk 0:02:07]} 18. h4 {[%clk 0:01:27]}  Na5 {[%clk 0:02:05]} 19. Qc2 {[%clk 0:01:17]}  Nb7 {[%clk 0:02:05]} 20. a4 {[%clk 0:00:56]}  Nxc5 {[%clk 0:02:02]} 21. dxc5 {[%clk 0:00:57]}  bxa4 {[%clk 0:02:01]} 22. Kf2 {[%clk 0:00:53]}  Qxc5 {[%clk 0:02:00]} 23. h5 {[%clk 0:00:53]}  h6 {[%clk 0:01:58]} 24. Bd3 {[%clk 0:00:50]}  Ke7 {[%clk 0:01:54]} 25. c4 {[%clk 0:00:42]}  dxc4 {[%clk 0:01:50]} 26. Bxc4 {[%clk 0:00:40]}  Rhc8 {[%clk 0:01:49]} 27. Rhc1 {[%clk 0:00:40]}  Qg5 {[%clk 0:01:33]} 28. Qb2 {[%clk 0:00:34]}  Kf8 {[%clk 0:01:29]} 29. Be2 {[%clk 0:00:14]}  a5 {[%clk 0:01:16]} 30. Qb7 {[%clk 0:00:14]}  Qe7 {[%clk 0:01:06]} 31. Rc7 {[%clk 0:00:09]}  Rxc7 {[%clk 0:00:35]} 32. Qxa8+ {[%clk 0:00:09]}  Rc8 {[%clk 0:00:35]} 33. Qxa5 {[%clk 0:00:10]}  Qc5 {[%clk 0:00:35]} 34. Qa6 {[%clk 0:00:08]}  Be8 {[%clk 0:00:33]} 35. Ra2 {[%clk 0:00:04]}  Qc7 {[%clk 0:00:33]} 0-1


[Site "https://www.chess.com"]